Workbook

Sheet 附件4
A1: 附件4：
A2: 2025年江门市本级政府性基金预算调整情况表
H3: 单位：万元
A4: 收 入 | E4: 支 出
A5: 项目 | B5: 年初预算数 | C5: 调整额 | D5: 调整后预算数 | E5: 项目 | F5: 年初预算数 | G5: 调整额 | H5: 调整后预算数
A6: 一、基金预算收入 | B6: 214,849 | C6: 0 | D6: =B6+C6 -> 214,849 | E6: 一、基金预算支出 | F6: 164,781 | G6: 147,800 | H6: =F6+G6 -> 312,581
A7: 二、上年结转收入 | B7: 1,728 | D7: =B7+C7 -> 1,728 | E7: 二、转移性支出 | F7: =F8+F9 -> 16,455 | G7: 0 | H7: 16,455
A8: 三、转移性收入 | B8: =B9+B10 -> 4,392 | C8: 0 | D8: 4,392 | E8: （一）上解上级支出
A9: （一）上级补助收入 | B9: 3,525 | D9: =B9+C9 -> 3,525 | E9: （二）补助下级支出 | F9: 16,455 | H9: =F9+G9 -> 16,455
A10: （二）下级上解收入 | B10: 867 | D10: =B10+C10 -> 867 | E10: 三、调出资金 | F10: 109,594 | H10: 109,594
A11: 四、债券转贷收入 | B11: =B12+B13 -> 890,000 | C11: 841,200 | D11: 1,731,200 | E11: 四、债券转贷支出 | F11: =F12+F13 -> 820,000 | G11: 691,267 | H11: 1,511,267
A12: （一）再融资债券收入 | B12: 0 | C12: 11,200 | D12: =B12+C12 -> 11,200 | E12: （一）再融资债券支出 | F12: 0 | G12: 9,067 | H12: =F12+G12 -> 9,067
A13: （二）专项债券收入 | B13: 890,000 | C13: 830,000 | D13: =B13+C13 -> 1,720,000 | E13: （二）专项债券支出 | F13: 820,000 | G13: 682,200 | H13: =F13+G13 -> 1,502,200
A14: 五、调入资金 | E14: 五、债务还本支出 | F14: 138 | G14: 2,133 | H14: 2,271
E15: 六、结转下年支出
A16: 收入总计 | B16: =B6+B7+B8+B11+B14 -> 1,110,969 | C16: 841,200 | D16: 1,952,169 | E16: 支出总计 | F16: =F6+F7+F10+F11+F14+F15 -> 1,110,969 | G16: =G6+G7+G10+G11+G14+G15 -> 841,200 | H16: =H6+H7+H10+H11+H14+H15 -> 1,952,169
